[Event "13th All African Mixed Team Rapid-ch 202"]
[Site "Accra"]
[Date "2024.03.09"]
[Round "3.8"]
[White "PEACE SAMSON"]
[Black "Ayiku, Angela Naa Amerley"]
[Result "1-0"]
[ECO "B27"]
[WhiteElo "1870"]
[BlackElo "1629"]
[Annotator "NA RC"]
[PlyCount "79"]
[EventDate "2024.03.07"]
[EventType "rapid"]
[EventCountry "GHA"]
[SourceTitle "playchess.com"]
[Source "ChessBase"]
[SourceQuality "1"]
[TimeControl "900+10"]

1. e4 {[%emt 0:15:20]} c5 {[%emt 0:02:15]} 2. Nf3 {[%emt 0:00:00]} g6 {[%emt 0:00:05]} 3. d4 {[%emt 0:00:00]} cxd4 {[%emt 0:00:10]} 4. Nxd4 {[%emt 0:00:00]} Bg7 {[%emt 0:00:08]} 5. Be3 {[%emt 0:00:00]} d6 {[%emt 0:00:16]} 6. Bd3 {[%emt 0:00:00] B27: Sicilian: 2 Nf3, unusual Black 2nd moves.} Nf6 {[%emt 0:00:07]} 7. h3 {[%emt 0:00:00]} O-O {[%emt 0:00:03]} 8. Nd2 {[%emt 0:00:00]} a6 {[%emt 0:00:17]} 9. O-O {[%emt 0:00:00]} Qc7 {[%emt 0:00:02]} 10. c3 {[%emt 0:00:00]} Nc6 {[%emt 0:00:06]} 11. Rc1 {[%emt 0:00:00]} Ne5 {[%emt 0:00:22]} 12. Bb1 {[%emt 0:00:00]} Nc4 {[%emt 0:00:58]} 13. Nxc4 {[%emt 0:00:00]} Qxc4 {[%emt 0:00:02]} 14. f3 {[%emt 0:00:00]} Qc5 {[%emt 0:00:31]} 15. Nf5 {[%emt 0:00:00]} Qc7 {[%emt 0:00:39]} 16. Nxg7 {[%emt 0:00:00]} Kxg7 {[%emt 0:00:05]} 17. Qd2 {[%emt 0:00:00]} Kg8 {[%emt 0:00:57]} 18. Qf2 {[%emt 0:00:00]} Be6 {[%emt 0:00:10]} 19. c4 {[%emt 0:00:00]} Rac8 {[%emt 0:00:27]} 20. b3 {[%emt 0:00:00]} Qd7 {[%emt 0:00:22]} 21. Rfd1 {[%emt 0:00:00]} Qc7 {[%emt 0:00:33]} 22. Bd4 {[%emt 0:00:00]} b5 {[%emt 0:00:45]} 23. Bd3 {[%emt 0:00:00]} Qa5 {[%emt 0:00:43]} 24. cxb5 {[%emt 0:00:00]} axb5 {[%emt 0:00:15]} 25. Bb1 {[%emt 0:00:00]} Nh5 {[%emt 0:00:23]} 26. Rxc8 {[%emt 0:00:00]} Rxc8 {[%emt 0:00:04]} 27. Qh4 {[%emt 0:00:00]} Qc7 {[%emt 0:01:49]} 28. Qg5 {[%emt 0:00:00]} f6 {[%emt 0:00:25]} 29. Qxb5 {[%emt 0:00:00]} Nf4 {[%emt 0:00:14]} 30. Be3 {[%emt 0:00:00]} Ne2+ {[%emt 0:00:19]} 31. Qxe2 {[%emt 0:00:00]} Rf8 {[%emt 0:01:54]} 32. Rc1 {[%emt 0:00:00]} Qa5 {[%emt 0:00:16]} 33. Qd2 {[%emt 0:00:00]} Qa6 {[%emt 0:02:17]} 34. Bd3 {[%emt 0:00:00]} Qa3 {[%emt 0:00:19]} 35. Bc4 {[%emt 0:00:00]} Bxc4 {[%emt 0:00:13]} 36. Rxc4 {[%emt 0:00:00]} Ra8 {[%emt 0:00:07]} 37. Bh6 {[%emt 0:00:00]} Qxa2 {[%emt 0:00:11]} 38. Qd5+ {[%emt 0:00:00]} Kh8 {[%emt 0:00:20]} 39. Qf7 {[%emt 0:00:00]} Rg8 {[%emt 0:00:39] [#]} 40. Bg7+ {[%emt 0:00:00]} 1-0

[Event "13th All African Mixed Team Rapid-ch 202"]
[Site "Accra"]
[Date "2024.03.09"]
[Round "3.9"]
[White "Mwali, Chitumbo"]
[Black "Oluka Robert Mcligeyo"]
[Result "1-0"]
[ECO "A20"]
[WhiteElo "2340"]
[BlackElo "2041"]
[Annotator "TA"]
[PlyCount "49"]
[EventDate "2024.03.07"]
[EventType "rapid"]
[EventCountry "GHA"]
[SourceTitle "playchess.com"]
[Source "ChessBase"]
[SourceQuality "1"]
[TimeControl "900+10"]

{[%evp 9,49,0,62,59,66,63,67,43,72,66,79,77,75,68,77,87,93,90,88,85,96,83,119,32,136,129,131,135,170,167,567,565,691,462,868,870,29986,29987,29994,29995,29995,29996]} 1. c4 {[%emt 0:00:03]} e5 {[%emt 0:00:05]} 2. g3 {[%emt 0:00:04]} Nf6 {[%emt 0:00:07]} 3. Bg2 {[%emt 0:00:03]} c6 {[%emt 0:00:02]} 4. d4 {[%emt 0:00:07]} Bb4+ {[%emt 0:00:39]} 5. Bd2 {[%emt 0:00:02]} Qe7 {[%emt 0:00:27]} (5... Bxd2+ $11 6. Qxd2 d6) 6. dxe5 $14 {[%emt 0:00:15]} Bxd2+ {[%emt 0:00:05]} 7. Qxd2 {[%emt 0:00:01]} Qxe5 {[%emt 0:00:01]} 8. Nf3 {[%emt 0:00:14] White is slightly better.} Qe7 {[%emt 0:00:01]} 9. Nc3 {[%emt 0:00:11]} O-O {[%emt 0:00:20][%cal Od7d5]} 10. O-O {[%emt 0:00:02]} Rd8 {[%emt 0:00:25]} 11. e4 {[%emt 0:00:39]} d6 {[%emt 0:00:03]} 12. Rfe1 {[%emt 0:00:06]} Be6 {[%emt 0:00:22] [#]} 13. Nd5 $1 {[%emt 0:00:21]} Bxd5 {[%emt 0:02:49]} (13... cxd5 $2 14. exd5 h6 15. Nd4 $18 (15. dxe6 fxe6 16. Nd4 e5 $18)) 14. exd5 {[%emt 0:00:09]} Qd7 {[%emt 0:00:02]} 15. Ng5 {[%emt 0:01:10]} cxd5 {[%emt 0:00:29]} 16. cxd5 {[%emt 0:00:19]} ({White should try} 16. Bxd5 $16 Nxd5 17. Qxd5) 16... Na6 {[%emt 0:00:24]} (16... Rf8 $14) 17. Bh3 $16 {[%emt 0:00:36] White has more active pieces.} Qb5 {[%emt 0:02:01][%cal Od8e8]} 18. Re7 {[%emt 0:00:06]} Re8 {[%emt 0:03:55]} 19. Rxf7 {[%emt 0:01:09] Threatens to win with Be6.} h6 $2 {[%emt 0:01:37] [#]} (19... Nc5 {is more resistant.}) 20. Rxf6 $1 $18 {[%emt 0:00:07][%mdl 512]} gxf6 {[%emt 0:00:23]} (20... Nc5 21. Be6+) 21. Ne6 {[%emt 0:00:07]} Qd7 {[%emt 0:01:48]} (21... Rxe6 $142 22. dxe6 Qh5) 22. Qxh6 {[%emt 0:00:18] Black is weak on the light squares} Qf7 {[%emt 0:00:08] Wards off Qg6+} 23. Rd1 {[%emt 0:00:07] White mates.} Nc5 {[%emt 0:00:13]} 24. Rd4 {[%emt 0:00:02]} Nxe6 {[%emt 0:01:40]} 25. Bxe6 {[%emt 0:00:05] Weighted Error Value: White=0.22 (precise) /Black=0.85.  Mistake:       	White=1     	Black=3      Inaccurate:     	White=1     	Black=3      OK:         	White=6     	Black=7      Best:        	White=1     	---        Brilliant:      	White=1     	---} 1-0

[Event "13th All African Mixed Team Rapid-ch 202"]
[Site "Accra"]
[Date "2024.03.09"]
[Round "3.10"]
[White "Mongeli, Sasha"]
[Black "Mbatha, Constance"]
[Result "0-1"]
[ECO "D30"]
[WhiteElo "1858"]
[BlackElo "1799"]
[Annotator "NA RC"]
[PlyCount "196"]
[EventDate "2024.03.07"]
[EventType "rapid"]
[EventCountry "GHA"]
[SourceTitle "playchess.com"]
[Source "ChessBase"]
[SourceQuality "1"]
[TimeControl "900+10"]

1. d4 {[%emt 0:00:02]} d5 {[%emt 0:00:02]} 2. Nf3 {[%emt 0:00:04]} Nf6 {[%emt 0:00:06]} 3. Bg5 {[%emt 0:00:15]} e6 {[%emt 0:00:03]} 4. e3 {[%emt 0:00:07]} Be7 {[%emt 0:00:02]} 5. c4 {[%emt 0:00:21]} dxc4 {[%emt 0:00:04]} 6. Bxc4 {[%emt 0:00:05] D30: Queen's Gambit Declined: Systems without Nc3.} O-O {[%emt 0:00:03]} 7. O-O {[%emt 0:00:06]} c6 {[%emt 0:00:02]} 8. Nc3 {[%emt 0:00:13]} Nbd7 {[%emt 0:00:01]} 9. a3 {[%emt 0:00:20]} Nb6 {[%emt 0:00:02]} 10. Ba2 {[%emt 0:00:13]} Nfd5 {[%emt 0:00:13]} 11. Bxe7 {[%emt 0:00:47]} Qxe7 {[%emt 0:00:09]} 12. e4 {[%emt 0:01:41]} Nc7 {[%emt 0:00:23]} 13. Qc2 {[%emt 0:00:23]} Rd8 {[%emt 0:00:07]} 14. Rad1 {[%emt 0:00:04]} Bd7 {[%emt 0:01:10]} 15. Ne2 {[%emt 0:02:14]} Be8 {[%emt 0:00:08]} 16. Ng3 {[%emt 0:00:15]} Rac8 {[%emt 0:00:17]} 17. Bb1 {[%emt 0:00:19]} g6 {[%emt 0:00:09]} 18. Qc1 {[%emt 0:00:35]} Kg7 {[%emt 0:00:13]} 19. Ne5 {[%emt 0:00:46]} f6 {[%emt 0:00:29]} 20. Ng4 {[%emt 0:00:13]} Rd7 {[%emt 0:06:06]} 21. Qh6+ {[%emt 0:00:35]} Kg8 {[%emt 0:00:13]} 22. h4 {[%emt 0:02:07]} Qg7 {[%emt 0:00:25]} 23. Qf4 {[%emt 0:00:18]} Rf7 {[%emt 0:00:12]} 24. Ba2 {[%emt 0:00:21]} Bd7 {[%emt 0:00:18]} 25. Rd3 {[%emt 0:00:54]} Kh8 {[%emt 0:00:11]} 26. Rf3 {[%emt 0:00:54]} e5 {[%emt 0:00:46]} 27. Nxe5 {[%emt 0:00:47]} Rff8 {[%emt 0:00:51]} 28. Nxd7 {[%emt 0:00:48]} Nxd7 {[%emt 0:00:02]} 29. Rd1 {[%emt 0:00:36]} Qe7 {[%emt 0:01:06]} 30. Qh6 {[%emt 0:00:26]} Qg7 {[%emt 0:00:38]} 31. Qf4 {[%emt 0:00:08]} Qe7 {[%emt 0:00:05]} 32. Qh6 {[%emt 0:00:31]} Qg7 {[%emt 0:00:02]} 33. Qf4 {[%emt 0:00:03]} Qe7 {[%emt 0:00:03]} 34. h5 {[%emt 0:00:25]} g5 {[%emt 0:01:28]} 35. Qg4 {[%emt 0:00:08]} Rfe8 {[%emt 0:01:23]} 36. Nf5 {[%emt 0:00:26]} Qxe4 {[%emt 0:01:55]} 37. Qxe4 {[%emt 0:00:06]} Rxe4 {[%emt 0:00:02]} 38. Nd6 {[%emt 0:00:05]} Rce8 {[%emt 0:00:06]} 39. Nxe4 {[%emt 0:00:51]} Rxe4 {[%emt 0:00:02]} 40. Re3 {[%emt 0:00:14]} Rxe3 {[%emt 0:00:12]} 41. fxe3 {[%emt 0:00:01]} Kg7 {[%emt 0:00:01]} 42. g4 {[%emt 0:00:11]} h6 {[%emt 0:00:07]} 43. Kg2 {[%emt 0:00:03]} Nb6 {[%emt 0:00:18]} 44. Bb3 {[%emt 0:00:12]} Kf8 {[%emt 0:00:22]} 45. e4 {[%emt 0:00:12]} Ke7 {[%emt 0:00:01]} 46. Kf3 {[%emt 0:00:09]} Nd7 {[%emt 0:00:28]} 47. Bc4 {[%emt 0:00:19]} c5 {[%emt 0:00:27]} 48. Bd5 {[%emt 0:00:48]} b6 {[%emt 0:00:11]} 49. dxc5 {[%emt 0:00:08]} Nxc5 {[%emt 0:00:20]} 50. b4 {[%emt 0:00:18]} Nd7 {[%emt 0:00:01]} 51. a4 {[%emt 0:00:13]} Ne5+ {[%emt 0:00:01]} 52. Kg3 {[%emt 0:00:03]} Ne8 {[%emt 0:00:14]} 53. a5 {[%emt 0:00:16]} Nc7 {[%emt 0:00:26]} 54. axb6 {[%emt 0:00:13]} axb6 {[%emt 0:00:01]} 55. Ra1 {[%emt 0:00:06]} Kd6 {[%emt 0:00:23]} 56. Rd1 {[%emt 0:00:16]} Ke7 {[%emt 0:00:06]} 57. Bb3 {[%emt 0:00:17]} Nb5 {[%emt 0:00:13] [#]} 58. Rd3 $19 {[%emt 0:01:19]} Nxd3 {[%emt 0:00:14]} 59. Bc4 {[%emt 0:00:00]} Nxb4 {[%emt 0:00:10]} 60. Bxb5 {[%emt 0:00:00]} Kd6 {[%emt 0:00:13]} 61. Kf3 {[%emt 0:00:00]} Ke5 {[%emt 0:00:08]} 62. Ke3 {[%emt 0:00:00]} Nc2+ {[%emt 0:00:03]} 63. Kd3 {[%emt 0:00:00]} Nd4 {[%emt 0:00:02]} 64. Bd7 {[%emt 0:00:00]} b5 {[%emt 0:00:13]} 65. Bc8 {[%emt 0:00:00]} b4 {[%emt 0:00:04]} 66. Kc4 {[%emt 0:00:18]} b3 {[%emt 0:00:02]} 67. Kc3 {[%emt 0:00:22]} Kxe4 {[%emt 0:00:11]} 68. Bd7 {[%emt 0:00:03]} Ke5 {[%emt 0:00:17]} 69. Bc8 {[%emt 0:00:03]} f5 {[%emt 0:00:06]} 70. gxf5 {[%emt 0:00:05]} Nxf5 {[%emt 0:00:03]} 71. Kxb3 {[%emt 0:00:06]} g4 {[%emt 0:00:18]} 72. Kc3 {[%emt 0:00:19]} g3 {[%emt 0:00:13]} 73. Bb7 {[%emt 0:00:07]} Kf4 {[%emt 0:00:08]} 74. Kd3 {[%emt 0:00:05]} Ng7 {[%emt 0:00:06]} 75. Ke2 {[%emt 0:00:10]} Nxh5 {[%emt 0:00:05]} 76. Kf1 {[%emt 0:00:04]} Nf6 {[%emt 0:00:05]} 77. Kg2 {[%emt 0:00:01]} Kg4 {[%emt 0:00:31]} 78. Bf3+ {[%emt 0:00:06]} Kf4 {[%emt 0:00:10]} 79. Bb7 {[%emt 0:00:05]} Ng4 {[%emt 0:00:02]} 80. Bc6 {[%emt 0:00:08]} Nf2 {[%emt 0:00:12]} 81. Bf3 {[%emt 0:00:10]} Ng4 {[%emt 0:00:09]} 82. Bb7 {[%emt 0:00:19]} Ne3+ {[%emt 0:00:40]} 83. Kh3 {[%emt 0:00:17]} Ng4 {[%emt 0:00:25]} 84. Kg2 {[%emt 0:00:30]} Nf2 {[%emt 0:00:26]} 85. Bf3 {[%emt 0:00:15]} Nd3 {[%emt 0:00:12]} 86. Be2 {[%emt 0:00:22]} Nc5 {[%emt 0:00:10]} 87. Bf3 {[%emt 0:00:07]} Ne6 {[%emt 0:00:05]} 88. Bd1 {[%emt 0:00:13]} Ng5 {[%emt 0:00:02]} 89. Bh5 {[%emt 0:00:09]} Ne4 {[%emt 0:00:17]} 90. Bf3 {[%emt 0:00:05]} Nf6 {[%emt 0:00:02]} 91. Bc6 {[%emt 0:00:15]} Ng4 {[%emt 0:00:18]} 92. Bb7 {[%emt 0:00:12]} Ne5 {[%emt 0:00:12]} 93. Bd5 {[%emt 0:00:15]} h5 {[%emt 0:00:05]} 94. Bb7 {[%emt 0:00:12]} Nf7 {[%emt 0:00:19]} 95. Bf3 {[%emt 0:00:06]} h4 {[%emt 0:00:03]} 96. Bd5 {[%emt 0:00:24]} Ng5 {[%emt 0:00:01]} 97. Bb7 {[%emt 0:00:20]} h3+ {[%emt 0:00:02]} 98. Kh1 {[%emt 0:00:11]} Ke3 {[%emt 0:00:13]} 0-1

[Event "13th All African Mixed Team Rapid-ch 202"]
[Site "Accra"]
[Date "2024.03.09"]
[Round "3.11"]
[White "Rongwane, Gomolemo"]
[Black "Rakotomaharo, Fy Antenaina"]
[Result "0-1"]
[ECO "E06"]
[WhiteElo "2021"]
[BlackElo "2454"]
[Annotator "TA"]
[PlyCount "92"]
[EventDate "2024.03.07"]
[EventType "rapid"]
[EventCountry "GHA"]
[SourceTitle "playchess.com"]
[Source "ChessBase"]
[SourceQuality "1"]
[TimeControl "900+10"]

{[%evp 15,92,30,34,29,27,26,23,18,36,14,31,32,70,9,3,-72,-57,-73,-76,-84,-80,-57,0,-80,0,-95,-37,-45,80,0,-3,-16,26,4,9,10,9,5,7,-16,-11,0,0,-345,-279,-404,-400,-440,-156,-136,0,-361,-338,-649,-337,-494,-144,-962,-875,-1131,-1107,-1330,-1060,-1010,-993,-1672,-1618,-1762,-886,-1766,-1471,-1997,-1752,-1519,-938,-895,-827,-1427,-1341]} 1. Nf3 {[%emt 0:00:04]} d5 {[%emt 0:00:02]} 2. d4 {[%emt 0:00:03]} Nf6 {[%emt 0:00:03]} 3. c4 {[%emt 0:00:02]} e6 {[%emt 0:00:01]} 4. g3 {[%emt 0:01:05]} Be7 {[%emt 0:00:04]} 5. Bg2 {[%emt 0:00:01]} O-O {[%emt 0:00:02]} 6. O-O {[%emt 0:00:04]} a5 {[%emt 0:00:01]} 7. Qc2 {[%emt 0:00:12] E06: Closed Catalan: Early deviations.} Nc6 {[%emt 0:00:02]} 8. Bf4 {[%emt 0:00:58]} dxc4 {[%emt 0:00:54]} 9. Qxc4 {[%emt 0:00:05]} Nd5 {[%emt 0:00:02]} 10. Bd2 $146 {[%emt 0:00:24]} ({Predecessor:} 10. Rd1 Nxf4 11. gxf4 Bd6 12. e3 Ne7 13. Qc2 c6 14. Nc3 Bc7 15. Rac1 f6 16. Ne4 {0-1 Finek,V (2409)-Gledura,B (2645) Prague Challengers 5th 2023 (5)}) 10... Nb6 {[%emt 0:00:12]} 11. Qd3 {[%emt 0:00:13]} Nb4 {[%emt 0:00:04]} 12. Qb3 {[%emt 0:00:17]} a4 {[%emt 0:00:07]} 13. Qd1 {[%emt 0:00:05]} c5 {[%emt 0:00:19]} 14. Bxb4 {[%emt 0:01:11]} (14. dxc5 $14 Bxc5 15. a3) 14... cxb4 $11 {[%emt 0:00:02]} 15. Nbd2 {[%emt 0:00:11]} (15. a3 $11) 15... a3 $1 $17 {[%emt 0:00:11]} 16. b3 {[%emt 0:00:36]} Nd5 {[%emt 0:00:04]} 17. Nc4 {[%emt 0:00:41]} Bd7 {[%emt 0:00:29]} 18. Nfe5 {[%emt 0:00:36]} Bb5 {[%emt 0:00:02]} (18... Nc3 $15 19. Qd3 Bc8) 19. Qd2 {[%emt 0:00:23]} (19. Bxd5 $1 $11 exd5 20. Ne3) 19... Rc8 {[%emt 0:00:14]} (19... Nc3 $17 {[%cal Od8d4] aiming for ...Qxd4!} 20. Bxb7 Ra7) 20. Rfc1 {[%emt 0:02:16]} (20. Bxd5 $1 $11 {remains equal.} exd5 (20... Qxd5 $2 21. Nb6 $16) 21. Ne3) 20... f6 {[%emt 0:00:29]} (20... Nc3 $1 $17 {[%cal Od8d4] Strongly threatening ...Qxd4!} 21. e3 Qc7) 21. Nd3 $15 {[%emt 0:00:12]} Ba6 {[%emt 0:00:54] [#]} (21... Nc3 $15 22. Nf4 Rxc4 23. bxc4 Bxc4) 22. e4 {[%emt 0:00:46]} (22. Bxd5 $1 $16 Qxd5 23. Nxb4 Bxb4 24. Qxb4 Qxd4 25. Qxa3) 22... Nc3 $11 {[%emt 0:00:02]} 23. Nf4 {[%emt 0:00:05]} Rxc4 {[%emt 0:02:39]} (23... Bxc4 {feels hotter.} 24. bxc4 Qd6 25. Rxc3 bxc3 26. Qxc3 e5) 24. bxc4 {[%emt 0:00:59]} Bxc4 {[%emt 0:00:03]} 25. Rxc3 {[%emt 0:00:29]} bxc3 {[%emt 0:00:02]} 26. Qxc3 {[%emt 0:00:01]} b5 {[%emt 0:00:27]} 27. d5 {[%emt 0:00:24]} exd5 {[%emt 0:01:02]} 28. exd5 {[%emt 0:01:19]} Qb6 {[%emt 0:00:48]} 29. Rb1 $2 {[%emt 0:00:54][%mdl 8192]} (29. Bf1 $11 {and White is okay.}) 29... Bxa2 $19 {[%emt 0:00:45]} 30. Rd1 {[%emt 0:00:03]} (30. Ra1 $142 Bc4 (30... b4 31. Qe1 $17) 31. Be4) 30... Bd6 $19 {[%emt 0:01:24]} (30... b4 $2 31. Qd3 Bd6 32. Ne6 $19) 31. Ne6 {[%emt 0:00:30]} Re8 $2 {[%emt 0:00:06]} (31... b4 32. Qd3 Rc8 33. Be4 $17) (31... Ra8 $19 32. Bf1 Bc4 (32... b4 $2 33. Qf3 $19) 33. Bxc4 bxc4 34. Qxc4 a2) 32. Be4 $17 {[%emt 0:00:17] [#]} Bc4 {[%emt 0:01:10]} ({Better is} 32... Qb7 $1 $17 {Hoping for ...Bc4.} 33. Qd3 g5 (33... Bc4 $2 34. Bxh7+ Kh8 35. Qf5 $18)) 33. Qc2 $2 {[%emt 0:00:09][%mdl 8192]} (33. Qf3 $1 $11 Ra8 (33... b4 $2 34. Bxh7+ Kf7 35. Qg4 $18) 34. Qf5) 33... h6 $19 {[%emt 0:00:11]} 34. Bg6 $2 {[%emt 0:00:35]} (34. Bf3 Bf8 35. Bg4) 34... Re7 {[%emt 0:00:25]} 35. Qf5 {[%emt 0:00:54]} (35. Bh7+ $142 Kh8 36. Bd3) 35... Qa6 $2 {[%emt 0:01:54]} (35... a2 $19 {has better winning chances.} 36. Nf4 Qa6 37. Bh7+ Kf8 (37... Kf7 38. Ne6 $16) 38. Ng6+ Ke8) 36. Bh7+ $2 {[%emt 0:01:56][%mdl 8192]} (36. Nxg7 $17 Kxg7 37. Bh5) 36... Kh8 $19 {[%emt 0:00:04]} 37. Nf8 {[%emt 0:00:32]} Re2 {[%emt 0:01:54]} 38. Ne6 {[%emt 0:00:26]} Qa7 {[%emt 0:00:51]} 39. Bg6 {[%emt 0:00:11]} Re5 {[%emt 0:00:33]} 40. Qh3 {[%emt 0:00:20]} a2 {[%emt 0:00:13]} 41. Nd4 {[%emt 0:00:31]} Bxd5 {[%emt 0:00:29]} ({And not} 41... a1=B 42. Qc8+) 42. Nc2 {[%emt 0:00:25]} Re2 {[%emt 0:00:45]} 43. Qc8+ {[%emt 0:00:21]} Bg8 {[%emt 0:00:02]} 44. Rf1 {[%emt 0:00:10]} Rxc2 {[%emt 0:00:35]} 45. Bxc2 {[%emt 0:00:06]} a1=Q {[%emt 0:00:03]} (45... a1=B $2 {perishes.} 46. Bb3 Qb8 47. Rc1 $18) 46. Bb3 {[%emt 0:00:04]} Qa8 {[%emt 0:00:15]} 0-1

[Event "13th All African Mixed Team Rapid-ch 202"]
[Site "Accra"]
[Date "2024.03.09"]
[Round "3.12"]
[White "Tsinjoviniavo, Aina Mahasambatra"]
[Black "Banda Natalie Katlo"]
[Result "1-0"]
[ECO "B12"]
[WhiteElo "1681"]
[BlackElo "1772"]
[Annotator "NA RC"]
[PlyCount "101"]
[EventDate "2024.03.07"]
[EventType "rapid"]
[EventCountry "GHA"]
[SourceTitle "playchess.com"]
[Source "ChessBase"]
[SourceQuality "1"]
[TimeControl "900+10"]

1. e4 {[%emt 0:00:02]} c6 {[%emt 0:00:01]} 2. d4 {[%emt 0:00:02]} d5 {[%emt 0:00:01]} 3. e5 {[%emt 0:00:07]} Bf5 {[%emt 0:00:01]} 4. Nf3 {[%emt 0:00:03]} e6 {[%emt 0:00:03]} 5. c4 {[%emt 0:00:11]} Bb4+ {[%emt 0:00:31]} 6. Nc3 {[%emt 0:00:06]} Ne7 {[%emt 0:00:10]} 7. c5 {[%emt 0:00:41]} h6 {[%emt 0:00:49]} 8. Be2 {[%emt 0:00:15]} Nd7 {[%emt 0:00:19]} 9. O-O {[%emt 0:00:07]} O-O {[%emt 0:00:25]} 10. a3 {[%emt 0:00:11]} Bxc3 {[%emt 0:01:08]} 11. bxc3 {[%emt 0:00:02]} b6 {[%emt 0:00:40]} 12. cxb6 {[%emt 0:00:15]} axb6 {[%emt 0:00:06]} 13. c4 {[%emt 0:00:22]} c5 {[%emt 0:03:04]} 14. Be3 {[%emt 0:01:33]} Qc7 {[%emt 0:00:29]} 15. Qb3 {[%emt 0:00:55]} Bg4 {[%emt 0:02:05]} 16. h3 {[%emt 0:01:29]} Bxf3 {[%emt 0:00:07]} 17. Bxf3 {[%emt 0:00:02]} cxd4 {[%emt 0:00:20]} 18. Bxd4 {[%emt 0:11:47]} dxc4 {[%emt 0:07:51]} 19. Qb4 {[%emt 0:00:00]} Nc6 {[%emt 0:00:00]} 20. Qxc4 {[%emt 0:00:00]} Rac8 {[%emt 0:00:00]} 21. Rfc1 {[%emt 0:00:00]} Ndb8 {[%emt 0:00:00]} 22. Rab1 {[%emt 0:00:00]} Qd7 {[%emt 0:00:00]} 23. Bxb6 {[%emt 0:00:00]} Nxe5 {[%emt 0:00:00]} 24. Qe4 {[%emt 0:00:00]} Nxf3+ {[%emt 0:00:00]} 25. Qxf3 {[%emt 0:00:00]} Nc6 {[%emt 0:00:00]} 26. a4 {[%emt 0:00:00]} Ne5 {[%emt 0:00:00]} 27. Qg3 {[%emt 0:00:00]} Nc4 {[%emt 0:00:00]} 28. a5 {[%emt 0:00:00]} Nxb6 {[%emt 0:00:00]} 29. axb6 {[%emt 0:00:00]} Rxc1+ {[%emt 0:00:11]} 30. Rxc1 {[%emt 0:00:00]} Qb7 {[%emt 0:00:22]} 31. Qe3 {[%emt 0:00:00]} Rb8 {[%emt 0:00:09]} 32. Rb1 {[%emt 0:00:00]} Rc8 {[%emt 0:00:02]} 33. Kh2 {[%emt 0:00:00]} Qb8+ {[%emt 0:00:07]} 34. g3 {[%emt 0:00:00]} Qb7 {[%emt 0:00:07]} 35. g4 {[%emt 0:00:00]} Qb8+ {[%emt 0:00:10]} 36. Kg2 {[%emt 0:00:00]} Qb7+ {[%emt 0:00:14]} 37. Qf3 {[%emt 0:00:00]} Qxf3+ {[%emt 0:00:52]} 38. Kxf3 {[%emt 0:00:00]} Kf8 {[%emt 0:00:02]} 39. Ke4 {[%emt 0:00:00]} Ke7 {[%emt 0:00:04]} 40. b7 {[%emt 0:00:00]} Rb8 {[%emt 0:00:01]} 41. Kd4 {[%emt 0:00:00]} Kd6 {[%emt 0:00:05]} 42. Rb6+ {[%emt 0:00:00]} Kc7 {[%emt 0:00:07]} 43. Kc5 {[%emt 0:00:00]} e5 {[%emt 0:01:19]} 44. Rb4 {[%emt 0:00:00]} f6 {[%emt 0:00:11]} 45. Kd5 {[%emt 0:00:00]} Kd7 {[%emt 0:00:06]} 46. f3 {[%emt 0:00:00]} Kc7 {[%emt 0:00:15]} 47. Ke6 {[%emt 0:00:00]} Rxb7 {[%emt 0:00:06]} 48. Rxb7+ {[%emt 0:00:00]} Kxb7 {[%emt 0:00:05]} 49. Kf7 {[%emt 0:00:00]} h5 {[%emt 0:00:13]} 50. Kxg7 {[%emt 0:00:05]} f5 {[%emt 0:00:16]} 51. gxf5 {[%emt 0:00:05]} 1-0

[Event "13th All African Mixed Team Rapid-ch 202"]
[Site "Accra"]
[Date "2024.03.09"]
[Round "3.13"]
[White "Frempong-Smart Daniel"]
[Black "Pereira, Sergio Murilo de Ara"]
[Result "0-1"]
[ECO "D02"]
[WhiteElo "1877"]
[BlackElo "2115"]
[Annotator "RC"]
[PlyCount "114"]
[EventDate "2024.03.07"]
[EventType "rapid"]
[EventCountry "GHA"]
[SourceTitle "playchess.com"]
[Source "ChessBase"]
[SourceQuality "1"]
[TimeControl "900+10"]

1. d4 {[%emt 0:00:03]} d5 {[%emt 0:00:05]} 2. Nf3 {[%emt 0:00:03]} Nf6 {[%emt 0:00:03]} 3. g3 {[%emt 0:00:02]} e6 {[%emt 0:00:14]} 4. Bg2 {[%emt 0:00:03]} c5 {[%emt 0:00:26]} 5. O-O {[%emt 0:00:08]} cxd4 {[%emt 0:00:11]} 6. h3 {[%emt 0:00:18]} Be7 {[%emt 0:00:35]} 7. Nxd4 {[%emt 0:00:08]} O-O {[%emt 0:01:01]} 8. Re1 {[%emt 0:04:05]} e5 {[%emt 0:00:41]} 9. Nb3 {[%emt 0:00:09]} Nc6 {[%emt 0:00:33]} 10. Bg5 {[%emt 0:00:20]} Be6 {[%emt 0:00:21]} 11. N1d2 {[%emt 0:01:34]} Qb6 {[%emt 0:03:40]} 12. e3 {[%emt 0:02:36]} Rac8 {[%emt 0:00:52]} 13. Qe2 {[%emt 0:00:46]} Nb4 {[%emt 0:00:42]} 14. Rec1 {[%emt 0:00:19]} Nxc2 {[%emt 0:00:23]} 15. Rab1 {[%emt 0:00:10]} Nb4 {[%emt 0:01:01]} 16. a3 {[%emt 0:00:06]} Nc6 {[%emt 0:00:49]} 17. Bxf6 {[%emt 0:01:01]} Bxf6 {[%emt 0:00:55]} 18. Nc5 {[%emt 0:00:06]} e4 {[%emt 0:01:09]} 19. b4 {[%emt 0:00:45]} Ne5 {[%emt 0:01:30]} 20. Kh2 {[%emt 0:01:53]} Rc7 {[%emt 0:02:00]} 21. Rd1 {[%emt 0:01:20]} Rfc8 {[%emt 0:01:02]} 22. Na4 {[%emt 0:00:13]} Qc6 {[%emt 0:00:09]} 23. Nc5 {[%emt 0:00:10]} Qe8 {[%emt 0:00:10]} 24. Nxe6 {[%emt 0:00:23]} Qxe6 {[%emt 0:00:21]} 25. Nb3 {[%emt 0:00:08]} Nd3 {[%emt 0:00:06]} 26. Rd2 {[%emt 0:00:23]} Qa6 {[%emt 0:00:08]} 27. Ra2 {[%emt 0:00:18]} b6 {[%emt 0:00:04]} 28. f3 {[%emt 0:00:24]} Qc4 {[%emt 0:00:11]} 29. fxe4 {[%emt 0:00:38]} dxe4 {[%emt 0:00:04]} 30. Rd2 {[%emt 0:00:12]} Rd8 {[%emt 0:00:22]} 31. h4 {[%emt 0:00:23]} Be5 {[%emt 0:00:15]} 32. Nc1 {[%emt 0:00:40]} Rcd7 {[%emt 0:00:09]} 33. Rc2 {[%emt 0:00:14]} Qd5 {[%emt 0:00:13]} 34. Nb3 {[%emt 0:00:14]} f5 {[%emt 0:00:03]} 35. Rd2 {[%emt 0:00:10]} Qd6 {[%emt 0:00:04]} 36. Nd4 {[%emt 0:00:07]} Bxg3+ {[%emt 0:00:08]} 37. Kg1 {[%emt 0:00:04]} g6 {[%emt 0:00:06]} 38. h5 {[%emt 0:00:05]} Be5 {[%emt 0:00:07]} 39. hxg6 {[%emt 0:00:02]} hxg6 {[%emt 0:00:11]} 40. Nb5 {[%emt 0:00:19]} Qf6 {[%emt 0:00:08]} 41. Rc2 {[%emt 0:00:15]} a6 {[%emt 0:00:08]} 42. Nc7 {[%emt 0:00:05]} Bxc7 {[%emt 0:00:14]} 43. b5 {[%emt 0:00:26]} a5 {[%emt 0:00:04]} 44. Rc6 {[%emt 0:00:04]} Bd6 {[%emt 0:00:08]} 45. Kf1 {[%emt 0:00:09]} Rb8 {[%emt 0:00:30]} 46. Qa2+ {[%emt 0:00:15]} Qf7 {[%emt 0:00:15]} 47. Qc2 {[%emt 0:00:08]} f4 {[%emt 0:00:29]} 48. exf4 {[%emt 0:00:11]} Qxf4+ {[%emt 0:00:00]} 49. Kg1 {[%emt 0:00:01]} Bc5+ {[%emt 0:00:00]} 50. Rxc5 {[%emt 0:00:09]} Nxc5 {[%emt 0:00:00]} 51. Rf1 {[%emt 0:00:05]} Qe3+ {[%emt 0:00:17]} 52. Rf2 {[%emt 0:00:10]} Rf8 {[%emt 0:00:12]} 53. Qc4+ {[%emt 0:00:15]} Kh8 {[%emt 0:00:09]} 54. Qc2 {[%emt 0:00:04]} Qe1+ {[%emt 0:00:19]} 55. Bf1 {[%emt 0:00:08]} Rxf2 {[%emt 0:00:05]} 56. Qxf2 {[%emt 0:00:11]} Qxf2+ {[%emt 0:00:01]} 57. Kxf2 {[%emt 0:00:02]} Kg7 {[%emt 0:00:03]} 0-1